bitfinex/quotes_SOLUSD_20260115
["timestamp","ask_amount","ask_price","bid_price","bid_amount"]
[1768462622141,0.67461298,144.7,144.66,0.70985717]
[1768462622304,0.67461298,144.7,144.66,3.2795004]
[1768462625339,0.67461298,144.7,144.67,3.2795004]
[1768462627213,0.67461298,144.7,144.67,3.2495004]
[1768462628234,0.67461298,144.7,144.67,2.53964323]
[1768462628424,0.67461298,144.7,144.66,3.2795004]
[1768462630614,0.67461298,144.69,144.66,0.70985717]
[1768462630935,0.67461298,144.69,144.64,0.70985717]
[1768462631124,0.67461298,144.68,144.64,3.2795004]
[1768462631522,0.67461298,144.68,144.64,0.70985717]
[1768462631927,0.67461298,144.67,144.63,12.6]
[1768462632244,0.67461298,144.67,144.63,0.70985717]
[1768462632541,0.67461298,144.66,144.62,0.70985717]
[1768462639441,3.24425621,144.66,144.62,0.70985717]
[1768462639949,0.67461298,144.65,144.62,0.70985717]
[1768462642053,0.69521508,144.64,144.6,13.28852608]
[1768462642230,0.69521508,144.64,144.6,12.6]
[1768462644645,0.66842194,144.63,144.6,13.30798544]
[1768462645154,0.66842194,144.63,144.6,0.70798544]
[1768462647128,0.66842194,144.63,144.59,0.70798544]
[1768462647545,0.66842194,144.62,144.58,7.62452941]
[1768462647748,0.66842194,144.62,144.59,0.70798544]
[1768462648733,0.66842194,144.62,144.58,0.70798544]
[1768462651544,0.66842194,144.61,144.58,0.70798544]
[1768462655160,0.66842194,144.61,144.58,7.62454633]
[1768462656149,0.66842194,144.61,144.58,0.70798544]
[1768462662162,0.66842194,144.61,144.58,7.62455786]
[1768462669279,0.66842194,144.61,144.58,11.63800817]
[1768462669652,0.66842194,144.61,144.58,7.62455786]
[1768462669958,0.66842194,144.61,144.58,11.63800817]
[1768462673469,0.65845389,144.66,144.61,0.66633927]
[1768462673770,0.65845389,144.67,144.64,0.66633927]
[1768462674158,0.65845389,144.67,144.63,11.59379493]
[1768462674363,0.65845389,144.67,144.64,4.67978958]
[1768462675472,0.65845389,144.67,144.64,0.66633927]
[1768462675781,0.65845389,144.67,144.63,11.59379493]
[1768462679802,0.65845389,144.67,144.64,4.01345031]
[1768462680686,0.65845389,144.68,144.65,0.66633927]
[1768462680977,0.65845389,144.69,144.66,0.66633927]
[1768462681178,0.80371389,144.7,144.67,4.01345031]
[1768462683558,0.80371389,144.7,144.68,4.01345031]
[1768462684665,0.14526,144.7,144.69,4.01345031]
[1768462684866,0.14526,144.7,144.69,3.98345031]
[1768462685883,0.80371389,144.7,144.69,3.98345031]
[1768462686087,0.80371389,144.7,144.68,4.01345031]
[1768462686295,0.80371389,144.7,144.67,16.61345031]
[1768462687969,0.80371389,144.7,144.67,12.6]
[1768462688169,0.80371389,144.7,144.67,16.61345031]
[1768462688711,0.80371389,144.7,144.68,4.01345031]
[1768462689003,0.80371389,144.7,144.68,3.98345031]
[1768462690281,0.80371389,144.7,144.67,13.26633927]
[1768462690491,0.80371389,144.7,144.68,4.01345031]
[1768462693595,0.80371389,144.7,144.67,16.61345031]
[1768462693794,0.80371389,144.7,144.68,4.01345031]
[1768462694997,0.80371389,144.7,144.67,20.17861583]
[1768462695200,0.80371389,144.7,144.68,4.01345031]
[1768462695499,0.65845389,144.72,144.69,4.01345031]
[1768462695701,0.65845389,144.72,144.7,4.01345031]
[1768462698498,0.75845389,144.74,144.71,4.01345031]
[1768462700186,0.75845389,144.74,144.7,7.57710827]
[1768462700391,0.75845389,144.74,144.71,4.01345031]
[1768462701780,0.75845389,144.74,144.71,10.92380461]
[1768462702115,0.75845389,144.74,144.71,4.01345031]
[1768462703701,0.75845389,144.74,144.7,7.57699302]
[1768462703909,0.75845389,144.74,144.71,4.01345031]
[1768462705294,0.75845389,144.74,144.71,2.56447207]
[1768462705604,0.75845389,144.74,144.7,7.57699302]
[1768462705605,0.75845389,144.74,144.7,10.14146509]
[1768462706310,0.75845389,144.74,144.7,2.56447207]
[1768462706889,0.70162268,144.72,144.67,13.29603457]
[1768462707091,0.70162268,144.72,144.67,22.7725013]
[1768462707313,0.70162268,144.72,144.68,2.56447207]
[1768462707509,0.70162268,144.72,144.67,20.20802923]
[1768462707709,0.70162268,144.71,144.67,22.7725013]
[1768462707894,0.70162268,144.71,144.68,2.56447207]
[1768462708222,0.70162268,144.71,144.69,2.56447207]
[1768462708600,0.70162268,144.71,144.68,2.56447207]
[1768462709521,0.70162268,144.71,144.69,2.56447207]
[1768462711514,0.64165316,144.71,144.69,2.56447207]
[1768462713015,0.58165732,144.71,144.69,2.56447207]
[1768462713406,0.5216611,144.71,144.69,2.56447207]
[1768462714107,0.5216611,144.71,144.68,2.56447207]
[1768462714294,0.5216611,144.71,144.67,20.20820743]
[1768462714591,0.5216611,144.71,144.68,2.56447207]
[1768462715411,0.5216611,144.71,144.68,3.26050664]
[1768462716216,0.5216611,144.71,144.67,15.16447207]
[1768462718908,0.5216611,144.71,144.67,12.6]
[1768462721011,0.5216611,144.71,144.67,2.56447207]
[1768462721322,0.5216611,144.71,144.67,3.26050664]
[1768462721825,0.5216611,144.71,144.68,3.26050664]
[1768462724104,0.5216611,144.71,144.68,0.69603457]
[1768462726644,0.5216611,144.71,144.67,10.17274697]
[1768462726805,0.5216611,144.71,144.67,0.69603457]
[1768462727114,0.5216611,144.71,144.67,3.26050664]
[1768462730432,0.5216611,144.71,144.67,0.69603457]
[1768462732615,0.5216611,144.71,144.67,3.26050664]
[1768462733110,0.5216611,144.71,144.67,0.69603457]
[1768462734627,0.5216611,144.71,144.67,3.26050664]
[1768462735006,0.5216611,144.71,144.68,0.72215312]
[1768462735209,0.72363167,144.72,144.68,3.28662519]
[1768462736531,0.72363167,144.72,144.68,10.19840908]
[1768462737132,0.72363167,144.72,144.68,7.63393701]
[1768462737336,0.72363167,144.72,144.68,0.72215312]
[1768462737529,0.72363167,144.7,144.66,10.19926894]
[1768462737730,0.72363167,144.7,144.66,7.63479687]
[1768462737928,0.72363167,144.7,144.66,10.19926894]
[1768462738808,0.72363167,144.7,144.67,0.72215312]
[1768462739031,0.72363167,144.7,144.66,7.63480968]
[1768462739234,0.72363167,144.7,144.66,10.19928175]
[1768462740030,0.72363167,144.7,144.66,7.63480968]
[1768462740941,0.72363167,144.69,144.64,7.63543213]
[1768462741117,0.72363167,144.69,144.64,10.1999042]
[1768462741315,0.72363167,144.68,144.64,7.63543213]
[1768462741934,0.72363167,144.68,144.65,0.72215312]
[1768462742234,0.72363167,144.71,144.67,0.72215312]
[1768462742436,0.72363167,144.72,144.69,0.72215312]
[1768462742732,0.72363167,144.72,144.68,3.28662519]
[1768462743835,0.72363167,144.72,144.68,0.72215312]
[1768462744028,0.72363167,144.72,144.68,3.28662519]
[1768462744226,6.90944178,144.73,144.7,0.72215312]
[1768462744227,0.72363167,144.73,144.7,0.72215312]
[1768462744416,0.72363167,144.73,144.7,3.28662519]
[1768462746139,0.72363167,144.73,144.7,10.19736265]
[1768462746441,0.72363167,144.73,144.7,7.63289058]
[1768462746633,0.72363167,144.73,144.69,0.72215312]
[1768462746835,0.72363167,144.72,144.69,0.72215312]
[1768462747032,0.72363167,144.72,144.69,7.6334466]
[1768462749131,0.72363167,144.72,144.69,6.91129348]
[1768462751928,0.72363167,144.72,144.68,10.19823833]
[1768462753141,0.72363167,144.72,144.69,0.72215312]
[1768462754343,0.72363167,144.72,144.68,10.19823833]
[1768462758844,6.90943531,144.73,144.69,0.72215312]
[1768462758845,0.72363167,144.73,144.69,0.72215312]
[1768462761648,0.65958258,144.72,144.68,9.47608521]
[1768462761856,0.65958258,144.71,144.68,10.18011464]
[1768462763333,0.71449744,144.72,144.69,2.56447207]
[1768462763834,0.71449744,144.72,144.68,10.18011464]
[1768462767364,0.71449744,144.72,144.68,11.62399542]
[1768462768231,0.71449744,144.72,144.68,7.61564257]
[1768462768432,0.71449744,144.72,144.68,11.62399542]
[1768462770656,0.71449744,144.72,144.68,7.61564257]
[1768462771530,0.71449744,144.72,144.68,6.91161314]
[1768462771963,0.71449744,144.72,144.68,7.62456012]
[1768462773560,0.71449744,144.71,144.67,11.63339576]
[1768462773759,0.71449744,144.71,144.67,7.62504291]
[1768462773962,0.71449744,144.71,144.67,11.63339576]
[1768462776962,0.71449744,144.71,144.67,7.62504291]
[1768462778971,0.71449744,144.7,144.67,7.62504291]
[1768462779898,0.71449744,144.7,144.67,6.91209593]
[1768462780870,0.71449744,144.7,144.67,7.62504291]
[1768462781074,4.72285029,144.71,144.68,0.71294698]
[1768462781247,0.71449744,144.7,144.68,0.71294698]
[1768462782072,0.71449744,144.7,144.67,7.62504291]
[1768462783678,0.71449744,144.72,144.69,0.71294698]
[1768462783870,0.71449744,144.72,144.68,0.71294698]
[1768462784261,0.71449744,144.72,144.68,7.62474932]
[1768462786378,5.88611667,144.71,144.68,7.62474932]
[1768462786543,0.65449745,144.71,144.68,7.62474932]
[1768462786749,0.65449745,144.71,144.68,0.71294698]
[1768462792682,0.59449746,144.71,144.68,0.71294698]
[1768462795589,0.69796335,144.72,144.69,0.69393611]
[1768462795774,7.60755772,144.73,144.69,0.69393611]
[1768462795974,5.17416334,144.72,144.69,0.69393611]
[1768462796173,7.60755772,144.73,144.69,0.69393611]
[1768462796485,5.17394943,144.72,144.69,0.69393611]
[1768462796685,7.60755772,144.73,144.69,0.69393611]
[1768462796882,5.17394943,144.72,144.69,0.69393611]
[1768462797082,7.60755772,144.73,144.69,0.69393611]
[1768462797390,5.17394821,144.72,144.69,4.70228896]
[1768462797575,7.60755772,144.73,144.69,4.70228896]
[1768462797777,5.17374171,144.72,144.69,4.70228896]
[1768462797969,7.60755772,144.73,144.69,4.70228896]
[1768462798289,5.17374171,144.72,144.69,4.70228896]
[1768462798481,7.60755772,144.73,144.69,4.70228896]
[1768462798679,5.17354688,144.72,144.69,4.70228896]
[1768462798986,7.60755772,144.73,144.69,4.70228896]
[1768462799196,5.17354688,144.72,144.69,4.70228896]
[1768462799392,7.60755772,144.73,144.69,4.70228896]
[1768462799595,5.17336348,144.72,144.69,4.70228896]
[1768462799781,7.60755772,144.73,144.69,4.70228896]
[1768462799980,5.17336469,144.72,144.69,4.70228896]
[1768462800191,0.69796335,144.72,144.69,4.70228896]
[1768462800701,0.69796335,144.72,144.69,0.69393611]
[1768462802585,7.60755772,144.73,144.69,0.69393611]
[1768462802890,5.17300676,144.72,144.69,0.69393611]
[1768462803076,7.60755772,144.73,144.69,0.69393611]
[1768462803271,5.17300798,144.72,144.69,0.69393611]
[1768462803478,0.69796335,144.72,144.69,0.69393611]
[1768462812514,0.1,144.74,144.73,0.69393611]
[1768462812515,1e-08,144.74,144.73,0.69393611]
[1768462812813,0.1,144.76,144.74,0.66393611]
[1768462813015,0.1,144.76,144.74,4.00835285]
[1768462813206,0.1,144.76,144.7,12.6]
[1768462813207,0.04000001,144.76,144.7,12.6]
[1768462813394,0.79796335,144.78,144.74,4.00835285]
[1768462813594,0.1,144.78,144.74,4.00835285]
[1768462813826,0.1,144.78,144.75,4.00835285]
[1768462814122,0.1,144.78,144.74,4.00835285]
[1768462814927,0.1,144.78,144.75,0.69393611]
[1768462815583,0.1,144.78,144.74,4.00835285]
[1768462815584,0.69796335,144.77,144.74,0.69393611]
[1768462816215,0.1,144.82,144.78,0.69393611]
[1768462816515,0.1,144.82,144.77,0.69393611]
[1768462816516,0.69796335,144.81,144.77,0.69393611]
[1768462816698,7.00535898,144.82,144.79,0.69393611]
[1768462816699,0.1,144.82,144.79,0.69393611]
[1768462816919,16.16012028,144.9,144.87,0.69393611]
[1768462817107,0.69796335,144.98,144.85,12.6]
[1768462817318,0.69796335,144.98,144.92,4.00835285]
[1768462817491,0.69796335,144.98,144.86,12.6]
[1768462817492,0.69796335,144.98,144.89,5.34408856]
[1768462817705,0.69796335,144.98,144.9,16.60835285]
[1768462817903,2.72296344,145.0,144.9,35.72312904]
[1768462818114,1.14835685,144.99,144.9,35.72312904]
[1768462818304,1.14835685,144.99,144.95,4.00835285]
[1768462818620,1.14835685,144.99,144.94,6.89926856]
[1768462818818,0.69796335,144.98,144.94,10.90762141]
[1768462819008,1.14835685,144.99,144.95,6.89869601]
[1768462819211,1.14835685,144.99,144.9,26.4268253]
[1768462819395,0.69796335,144.98,144.94,4.00835285]
[1768462819595,0.22415075,144.98,144.95,6.89849902]
[1768462819795,0.22415075,144.98,144.94,0.4738126]
[1768462820012,0.22415075,144.98,144.94,4.48216545]
[1768462820218,0.4503935,144.99,144.95,4.00835285]
[1768462820403,0.4503935,144.99,144.94,0.4738126]
[1768462820604,0.4503935,144.99,144.94,4.48216545]
[1768462820911,0.4503935,144.99,144.94,4.00835285]
[1768462821111,0.4503935,144.99,144.94,4.48216545]
[1768462821318,0.4503935,144.99,144.94,7.373088]
[1768462821517,0.4503935,144.99,144.95,0.4738126]
[1768462821728,1.1153374,144.99,144.94,11.38144085]
[1768462821930,0.6649439,144.98,144.94,4.00835285]
[1768462822231,0.6649439,144.98,144.92,0.4738126]
[1768462822520,0.6649439,144.98,144.91,7.37460469]
[1768462822521,0.6649439,144.95,144.91,7.37460469]
[1768462822726,0.6649439,144.95,144.91,4.48216545]
[1768462822897,0.6649439,144.95,144.9,23.98341417]
[1768462822898,0.66636745,144.94,144.9,23.98341417]
[1768462823096,0.66636745,144.94,144.9,4.48216545]
[1768462823296,0.66636745,144.94,144.9,0.4738126]
[1768462823520,0.66636745,144.96,144.91,4.48216545]
[1768462823697,0.66636745,144.94,144.89,7.37558016]
[1768462823902,0.66636745,144.95,144.9,7.37486371]
[1768462824310,0.66636745,144.95,144.91,6.90077584]
[1768462824517,0.66636745,144.95,144.91,10.90912869]
[1768462825124,0.66636745,144.95,144.9,0.4738126]
[1768462825300,0.66636745,144.95,144.9,4.48216545]
[1768462825631,0.66636745,144.94,144.9,11.38335796]
[1768462826124,0.66636745,144.94,144.9,7.37500511]
[1768462826426,0.66636745,144.94,144.9,0.4738126]
[1768462826630,0.66636745,144.94,144.89,6.90172644]
[1768462826922,0.66636745,144.93,144.89,10.91007929]
[1768462827427,0.66636745,144.93,144.89,2.55786198]
[1768462827610,0.66636745,144.93,144.89,3.03167458]
[1768462827807,0.66636745,144.93,144.89,0.4738126]
[1768462828015,0.66636745,144.93,144.89,3.03167458]
[1768462828197,0.66636745,144.92,144.88,7.37605481]
[1768462828402,3.22422943,144.92,144.87,19.95651827]
[1768462828602,3.22422943,144.92,144.87,22.51438025]
[1768462829230,0.66636745,144.9,144.86,6.90316766]
[1768462829435,0.66636745,144.89,144.84,15.61167458]
[1768462829601,3.22422943,144.89,144.84,15.61167458]
[1768462829937,0.66636745,144.89,144.84,15.61167458]
[1768462830101,5.72276014,144.88,144.84,0.4738126]
[1768462830298,5.05639269,144.87,144.83,3.03167458]
[1768462830498,5.05639269,144.87,144.84,7.37794699]
[1768462830721,5.05639269,144.87,144.81,29.84380249]
[1768462830722,5.72276014,144.87,144.82,0.4738126]
[1768462830930,5.05639269,144.86,144.82,9.93668497]
[1768462831418,5.05639269,144.85,144.82,0.4738126]
[1768462831816,5.05639269,144.85,144.81,19.95930204]
[1768462832010,5.05639269,144.85,144.82,6.90502963]
[1768462832209,5.05639269,144.85,144.83,2.55786198]
[1768462832409,0.66636745,144.88,144.84,2.55786198]
[1768462832615,0.66636745,144.88,144.83,0.4738126]
[1768462832834,0.66636745,144.86,144.82,2.55786198]
[1768462833034,0.66636745,144.86,144.81,15.13786198]
[1768462833233,0.66636745,144.86,144.81,12.58]
[1768462833431,0.66636745,144.86,144.82,2.55786198]
[1768462835311,0.66636745,144.86,144.83,2.55786198]
[1768462835518,0.66636745,144.86,144.82,2.55786198]
[1768462835723,0.66636745,144.88,144.82,2.55786198]
[1768462836040,0.66636745,144.88,144.83,2.55786198]
[1768462836644,0.66636745,144.87,144.83,2.55786198]
[1768462836821,0.66636745,144.87,144.82,9.46265724]
[1768462837022,0.66636745,144.87,144.81,22.0433679]
[1768462837336,0.66636745,144.86,144.82,2.55786198]
[1768462838510,0.66636745,144.85,144.81,15.13786198]
[1768462839108,0.66636745,144.85,144.82,2.55786198]
[1768462839817,0.66636745,144.85,144.77,74.03786877]
[1768462839818,0.66636745,144.84,144.77,74.03786877]
[1768462840005,0.66636745,144.84,144.8,2.55786198]
[1768462840202,0.66636745,144.83,144.79,2.55786198]
[1768462840628,0.66636745,144.82,144.78,2.55786198]
[1768462840820,0.66636745,144.82,144.77,88.18117067]
[1768462841130,0.66636745,144.82,144.77,15.13786198]
[1768462841331,0.66636745,144.82,144.77,12.58]
[1768462841535,0.66636745,144.82,144.78,2.55786198]
[1768462841724,7.57205485,144.81,144.76,2.55786198]
[1768462842026,0.66636745,144.8,144.77,2.55786198]
[1768462842504,0.66636745,144.8,144.76,2.55786198]
[1768462843923,0.66636745,144.8,144.75,9.4659754]
[1768462845020,17.26135527,144.84,144.75,9.4659754]
[1768462845021,6.90514494,144.82,144.78,2.55786198]
[1768462845233,0.66636745,144.83,144.75,6.90811342]
[1768462845537,0.66636745,144.82,144.78,2.55786198]
[1768462845706,0.66636745,144.82,144.75,6.90811342]
[1768462845707,0.66636745,144.82,144.76,12.58]
[1768462845909,0.66636745,144.82,144.77,2.55786198]
[1768462846111,0.66636745,144.82,144.78,2.55786198]
[1768462846341,0.66636745,144.82,144.76,12.58]
[1768462846342,0.66636745,144.79,144.76,12.58]
[1768462846842,0.66636745,144.79,144.76,15.13786198]
[1768462847534,0.66636745,144.79,144.74,6.90881975]
[1768462847717,0.66636745,144.79,144.75,2.55786198]
[1768462847918,0.66636745,144.79,144.74,9.46668173]
[1768462848233,0.66636745,144.78,144.74,2.55786198]
[1768462848610,0.66636745,144.78,144.74,9.46678074]
[1768462848816,0.66636745,144.78,144.75,2.55786198]
[1768462849017,0.66636745,144.78,144.74,6.90891876]
[1768462849235,0.66636745,144.78,144.74,9.46678074]
[1768462849536,0.66636745,144.78,144.74,2.55786198]
[1768462850247,0.66636745,144.78,144.73,6.90941753]
[1768462850715,0.66636745,144.78,144.74,2.55786198]
[1768462850917,0.66636745,144.78,144.74,9.4667624]
[1768462851731,0.66636745,144.78,144.75,2.55786198]
[1768462852043,7.58145513,144.81,144.77,2.55786198]
[1768462852211,0.67551614,144.82,144.75,12.58]
[1768462852537,0.67551614,144.82,144.78,2.55786198]
[1768462853043,0.67551614,144.81,144.77,2.55786198]
[1768462854842,0.67551614,144.81,144.77,9.46530664]
[1768462855336,0.67551614,144.82,144.77,6.90744466]
[1768462855549,0.67551614,144.82,144.78,2.55786198]
[1768462857122,0.67551614,144.82,144.76,6.90798563]
[1768462857322,0.67551614,144.82,144.77,6.90721798]
[1768462857539,0.67551614,144.81,144.77,9.46507996]
[1768462858317,0.67551614,144.82,144.78,9.46483851]
[1768462860122,0.67551614,144.84,144.8,2.55786198]
[1768462860640,0.67551614,144.84,144.81,2.55786198]
[1768462861346,0.67551614,144.84,144.82,2.55786198]
[1768462862469,5.34408856,144.9,144.82,2.55786198]
[1768462862470,6.90131124,144.9,144.85,2.55786198]
[1768462862645,6.90131124,144.9,144.86,2.55786198]
[1768462862865,24.1479892,144.94,144.86,0.67551614]
[1768462863022,26.70585118,144.94,144.87,0.67551614]
[1768462863222,26.70585118,144.94,144.89,2.55786198]
[1768462863648,26.70585118,144.94,144.83,15.15786198]
[1768462863649,24.1479892,144.94,144.88,2.55786198]
[1768462863826,2.55786198,144.93,144.88,2.55786198]
[1768462864354,0.67551614,144.91,144.88,2.55786198]
[1768462864949,0.67551614,144.91,144.87,2.55786198]
[1768462866130,0.67551614,144.91,144.88,2.55786198]
[1768462866428,0.67551614,144.91,144.87,2.55786198]
[1768462866831,0.67551614,144.91,144.88,2.55786198]
[1768462867050,0.67551614,144.93,144.89,2.55786198]
[1768462867347,0.67551614,144.93,144.88,0.67551614]
[1768462867523,0.67551614,144.93,144.89,2.55786198]
[1768462868227,0.67551614,144.93,144.88,7.57763589]
[1768462868533,0.67551614,144.93,144.89,2.55786198]
[1768462868944,0.67551614,144.92,144.88,7.57763589]
[1768462869130,0.67551614,144.92,144.88,10.13549787]
[1768462870455,0.67551614,144.93,144.89,3.23337812]
[1768462871637,0.67551614,144.93,144.89,2.55786198]
[1768462872232,0.67551614,144.93,144.88,7.57763589]
[1768462872233,0.67551614,144.92,144.88,7.57763589]
[1768462872749,0.67551614,144.92,144.88,10.13549787]
[1768462875060,0.67551614,144.9,144.86,6.90292636]
[1768462875250,0.67551614,144.9,144.86,9.46078834]
[1768462875449,0.67551614,144.9,144.87,2.55786198]
[1768462875762,7.57554269,144.93,144.89,3.23337812]
[1768462876059,0.67551614,144.92,144.89,2.52786198]
[1768462878969,0.67551614,144.92,144.88,7.57774455]
[1768462879169,0.67551614,144.92,144.89,2.55786198]
[1768462879571,0.67551614,144.92,144.88,10.13560653]
[1768462879766,0.67551614,144.92,144.89,3.23337812]
[1768462880155,0.67551614,144.9,144.87,6.90256826]
[1768462880357,6.89995772,144.93,144.88,7.57756343]
[1768462880559,0.67551614,144.94,144.9,0.67551614]
[1768462880866,0.7012905,144.93,144.89,3.23337812]
[1768462881274,0.7012905,144.93,144.9,2.55786198]
[1768462881649,0.7012905,144.93,144.89,3.23337812]
[1768462883175,0.7012905,144.93,144.9,2.55786198]
[1768462883988,0.69224456,144.94,144.91,0.67551614]
[1768462884181,0.69224456,144.95,144.92,3.23337812]
[1768462884469,6.89812283,144.97,144.92,3.23337812]
[1768462884470,0.69224456,144.96,144.92,3.23337812]
[1768462884967,0.69224456,144.96,144.92,2.55786198]
[1768462885368,0.69224456,144.95,144.91,3.23337812]
[1768462885974,0.69224456,144.95,144.91,2.55786198]
[1768462888157,0.69224456,144.95,144.9,7.57656013]
[1768462888474,0.69224456,144.94,144.91,2.55786198]
[1768462889370,0.69224456,144.94,144.91,3.99610688]
[1768462892663,0.69224456,144.94,144.9,7.57672419]
[1768462892869,0.69224456,144.94,144.9,11.57283107]
[1768462893256,0.69224456,144.93,144.9,3.99610688]
[1768462893463,0.69224456,144.93,144.91,3.99610688]
[1768462894564,0.69224456,144.93,144.9,3.99610688]
[1768462894774,0.69224456,144.93,144.9,3.27110688]
[1768462895261,0.69224456,144.93,144.89,0.69843263]
[1768462895473,7.59220933,144.93,144.9,3.99610688]
[1768462895671,0.1804169,144.92,144.87,20.18098192]
[1768462895989,0.68712629,144.91,144.87,20.18098192]
[1768462896185,0.68712629,144.91,144.88,3.99610688]
[1768462896574,0.68712629,144.91,144.88,0.69843263]
[1768462897783,4.68323317,144.91,144.88,0.69843263]
[1768462897990,11.58412488,144.91,144.87,0.69843263]
[1768462898375,4.18159087,144.9,144.87,0.69843263]
[1768462898577,4.18159087,144.9,144.86,0.69843263]
[1768462899094,0.18548399,144.9,144.86,0.69843263]
[1768462899391,4.18159087,144.9,144.86,0.69843263]
[1768462899592,4.67821675,144.89,144.86,0.69843263]
[1768462899784,4.61821676,144.89,144.86,0.69843263]
[1768462900185,0.62210988,144.89,144.86,0.69843263]
[1768462900794,0.5021099,144.89,144.86,0.69843263]
[1768462901292,11.40018463,144.89,144.86,0.69843263]
[1768462901492,0.5021099,144.89,144.86,0.69843263]
[1768462901698,11.40000615,144.89,144.86,0.69843263]
[1768462904292,5.1434856,144.88,144.86,0.69843263]
[1768462904499,5.1434856,144.88,144.84,19.48397201]
[1768462904500,4.18655713,144.88,144.84,13.27843263]
[1768462904678,5.14405792,144.87,144.84,0.69843263]
[1768462904877,3.99610688,144.87,144.84,0.69843263]
[1768462905298,5.14700112,144.86,144.84,0.69843263]
[1768462905498,4.18655713,144.88,144.85,0.69843263]
[1768462905679,23.00372685,144.93,144.86,0.69843263]
[1768462905879,12.58,144.92,144.86,0.69843263]
[1768462906082,3.99610688,144.9,144.86,0.69843263]
[1768462906395,11.49198556,144.9,144.86,0.69843263]
[1768462906903,0.099,144.89,144.86,0.69843263]
[1768462907591,4.09510688,144.89,144.86,0.69843263]
[1768462908000,10.99693815,144.89,144.86,0.69843263]
[1768462908175,4.10001217,144.87,144.84,0.69843263]
[1768462908689,4.10001217,144.87,144.82,0.69843263]
[1768462908895,3.99610688,144.86,144.82,0.69843263]
[1768462909597,24.74609335,144.86,144.8,0.69843263]
[1768462909795,3.99610688,144.84,144.8,0.69843263]
[1768462909995,7.48805111,144.86,144.81,0.69843263]
[1768462910182,3.99610688,144.85,144.81,7.60370154]
[1768462910578,3.99610688,144.85,144.81,0.69843263]
[1768462911394,3.99610688,144.84,144.81,0.69843263]
[1768462911994,0.59448389,144.85,144.82,0.6999072]
[1768462912295,4.59059077,144.85,144.82,0.6999072]
[1768462915797,11.49429568,144.85,144.82,0.6999072]
[1768462916599,0.099,144.84,144.8,7.60579939]
[1768462916811,4.58077969,144.87,144.82,0.6999072]
[1768462917014,0.58467281,144.87,144.82,0.6999072]
[1768462917303,11.48358953,144.87,144.83,0.6999072]
[1768462917485,3.99610688,144.86,144.83,0.6999072]
[1768462917678,9.13492614,144.86,144.83,0.6999072]
[1768462917893,4.10481984,144.86,144.83,0.6999072]
[1768462919390,4.59059077,144.88,144.84,0.6999072]
[1768462919705,5.13738069,144.87,144.84,0.6999072]
[1768462919905,0.59448389,144.88,144.84,0.6999072]
[1768462920090,5.13737707,144.87,144.84,0.6999072]
[1768462920283,4.59059077,144.88,144.84,0.6999072]
[1768462920483,0.59448389,144.88,144.84,0.6999072]
[1768462920681,5.34408856,144.93,144.87,0.6999072]
[1768462920682,0.59448389,144.93,144.87,0.6999072]
[1768462920994,5.1365569,144.92,144.89,4.69601408]
[1768462921178,4.58563593,144.93,144.89,0.6999072]
[1768462921383,5.13570673,144.92,144.89,0.6999072]
[1768462921592,3.99610688,144.91,144.88,0.6999072]
[1768462921906,11.00059477,144.92,144.88,0.6999072]
[1768462922283,3.99610688,144.91,144.88,0.6999072]
[1768462922914,4.58077969,144.91,144.87,0.6999072]
[1768462923099,4.58077969,144.91,144.87,4.69601408]
[1768462923412,4.5760201,144.89,144.86,0.6999072]
[1768462923712,4.5760201,144.89,144.85,0.6999072]
[1768462923908,11.47786505,144.89,144.85,0.6999072]
[1768462924106,4.10953184,144.88,144.83,11.60049803]
[1768462924310,4.10953184,144.88,144.84,0.6999072]
[1768462924901,0.11342496,144.88,144.84,0.6999072]
[1768462925606,4.11415007,144.86,144.82,0.6999072]
[1768462925906,10.99802776,144.87,144.83,0.6999072]
[1768462927401,7.00192088,144.87,144.83,0.6999072]
[1768462927593,10.99802776,144.87,144.83,0.6999072]
[1768462927805,3.99610688,144.86,144.83,0.6999072]
[1768462928191,3.99610688,144.86,144.82,0.6999072]
[1768462928192,3.99610688,144.85,144.82,0.6999072]
[1768462928495,4.58563593,144.86,144.82,0.6999072]
[1768462929111,0.58952905,144.86,144.82,0.6999072]
[1768462929297,4.58563593,144.86,144.82,0.6999072]
[1768462929489,0.58952905,144.86,144.82,0.6999072]
[1768462929797,11.49351165,144.87,144.83,0.6999072]
[1768462930821,6.90279822,144.87,144.84,0.6999072]
[1768462931390,10.9979051,144.87,144.84,0.6999072]
[1768462932711,4.58563593,144.86,144.8,0.6999072]
[1768462932925,7.00179822,144.87,144.83,0.6999072]
[1768462933297,10.9979051,144.87,144.83,0.6999072]
[1768462933790,10.8989051,144.87,144.83,0.6999072]
[1768462934514,5.14181607,144.86,144.83,0.6999072]
[1768462934709,5.14181607,144.85,144.83,0.6999072]
[1768462935018,10.8989051,144.87,144.83,0.6999072]
[1768462935217,5.14308636,144.86,144.83,0.6999072]
[1768462935393,5.14308636,144.85,144.83,0.6999072]
[1768462935600,10.8989051,144.87,144.83,0.6999072]
[1768462935801,5.14316582,144.86,144.84,0.6999072]
[1768462936129,0.68356869,144.89,144.83,10.90036892]
[1768462936304,0.68356869,144.89,144.85,3.99610688]
[1768462937307,0.68356869,144.89,144.85,6.90367249]